[Event "Early-Titled-Tuesday-Blitz-August-29-2023"]
[Site "Chess.com"]
[Date "2023.08.29"]
[Round "2"]
[White "twofoxniel"]
[Black "Oleksandr_Bortnyk"]
[Result "1/2-1/2"]
[WhiteElo "2660"]
[BlackElo "3022"]
[TimeControl "180+1"]
[EndTime "8:16:55 PDT"]
[Termination "Game drawn by repetition"]

1. e4 {[%clk 0:03:00.9]} 1... Nf6 {[%clk 0:02:55.1]} 2. Nc3 {[%clk 0:02:57.7]}
2... d5 {[%clk 0:02:48.7]} 3. exd5 {[%clk 0:02:57.4]} 3... Nxd5 {[%clk
0:02:49.6]} 4. Bc4 {[%clk 0:02:57.7]} 4... Nb6 {[%clk 0:02:49.1]} 5. Bb3 {[%clk
0:02:57.8]} 5... c5 {[%clk 0:02:49.1]} 6. d3 {[%clk 0:02:58.1]} 6... Nc6 {[%clk
0:02:48.7]} 7. h3 {[%clk 0:02:55.6]} 7... Bf5 {[%clk 0:02:48.7]} 8. Nf3 {[%clk
0:02:55.3]} 8... e6 {[%clk 0:02:48]} 9. O-O {[%clk 0:02:55.8]} 9... Be7 {[%clk
0:02:48.6]} 10. Re1 {[%clk 0:02:56]} 10... O-O {[%clk 0:02:48.6]} 11. Bf4 {[%clk
0:02:51.3]} 11... Na5 {[%clk 0:02:44.4]} 12. Ne5 {[%clk 0:02:48.8]} 12... Rc8
{[%clk 0:02:30]} 13. Qf3 {[%clk 0:02:42.7]} 13... a6 {[%clk 0:02:17.6]} 14. Rad1
{[%clk 0:02:37.3]} 14... f6 {[%clk 0:01:59.8]} 15. Ng4 {[%clk 0:02:13]} 15...
Nxb3 {[%clk 0:01:58.6]} 16. axb3 {[%clk 0:02:13]} 16... Qd7 {[%clk 0:01:51]} 17.
Ne3 {[%clk 0:02:08]} 17... Bg6 {[%clk 0:01:49.2]} 18. Nc4 {[%clk 0:02:05.9]}
18... Nd5 {[%clk 0:01:43.7]} 19. Nxd5 {[%clk 0:01:58.9]} 19... Qxd5 {[%clk
0:01:31]} 20. Qxd5 {[%clk 0:01:58.2]} 20... exd5 {[%clk 0:01:31.9]} 21. Rxe7
{[%clk 0:01:53.7]} 21... dxc4 {[%clk 0:01:31.9]} 22. bxc4 {[%clk 0:01:53.8]}
22... Rf7 {[%clk 0:01:24.2]} 23. Rde1 {[%clk 0:01:51.3]} 23... h6 {[%clk
0:01:22.8]} 24. Bd6 {[%clk 0:01:49.5]} 24... b5 {[%clk 0:01:02.6]} 25. Re8+
{[%clk 0:01:42.8]} 25... Rxe8 {[%clk 0:01:02.3]} 26. Rxe8+ {[%clk 0:01:42.5]}
26... Kh7 {[%clk 0:01:03.2]} 27. Re7 {[%clk 0:01:19.8]} 27... Rxe7 {[%clk
0:01:00.1]} 28. Bxe7 {[%clk 0:01:20.4]} 28... bxc4 {[%clk 0:01:01]} 29. dxc4
{[%clk 0:01:20.8]} 29... Bxc2 {[%clk 0:01:01.9]} 30. Bxc5 {[%clk 0:01:21]} 30...
Bb3 {[%clk 0:01:02.5]} 31. f4 {[%clk 0:01:17.9]} 31... Bxc4 {[%clk 0:01:03.4]}
32. b4 {[%clk 0:01:18.2]} 32... Kg6 {[%clk 0:01:02.4]} 33. Kf2 {[%clk
0:01:18.1]} 33... h5 {[%clk 0:01:02.9]} 34. g4 {[%clk 0:01:18]} 34... Bd3 {[%clk
0:00:59.7]} 35. Kg3 {[%clk 0:01:17.3]} 35... Be2 {[%clk 0:00:56.7]} 36. f5+
{[%clk 0:01:15.6]} 36... Kf7 {[%clk 0:00:53.4]} 37. Kf4 {[%clk 0:01:13.8]} 37...
g5+ {[%clk 0:00:45.9]} 38. fxg6+ {[%clk 0:01:13.2]} 38... Kxg6 {[%clk
0:00:46.8]} 39. gxh5+ {[%clk 0:01:13.1]} 39... Bxh5 {[%clk 0:00:47.7]} 40. h4
{[%clk 0:01:12.5]} 40... Be2 {[%clk 0:00:47.4]} 41. Be7 {[%clk 0:01:12.6]} 41...
Bb5 {[%clk 0:00:47.4]} 42. Bc5 {[%clk 0:01:13]} 42... Bc4 {[%clk 0:00:46.3]} 43.
Be7 {[%clk 0:01:13.3]} 43... Bd3 {[%clk 0:00:46.9]} 44. Bc5 {[%clk 0:01:13.8]}
44... f5 {[%clk 0:00:46.9]} 45. Be7 {[%clk 0:01:14]} 45... Kh5 {[%clk
0:00:47.5]} 46. Bg5 {[%clk 0:01:12.7]} 46... Bc2 {[%clk 0:00:47.8]} 47. Be7
{[%clk 0:01:11.9]} 47... Bb1 {[%clk 0:00:48]} 48. Bg5 {[%clk 0:01:12.1]} 48...
Bc2 {[%clk 0:00:48.7]} 49. Be7 {[%clk 0:01:11.9]} 49... Bb1 {[%clk 0:00:49.3]}
50. Bg5 {[%clk 0:01:12.2]} 50... Bc2 {[%clk 0:00:49.9]} 1/2-1/2

[Event "Early-Titled-Tuesday-Blitz-August-29-2023"]
[Site "Chess.com"]
[Date "2023.08.29"]
[Round "2"]
[White "GeorgiosSouleidis"]
[Black "RobertoJBM"]
[Result "1/2-1/2"]
[WhiteElo "2566"]
[BlackElo "2831"]
[TimeControl "180+1"]
[EndTime "8:16:57 PDT"]
[Termination "Game drawn by repetition"]

1. e4 {[%clk 0:03:00.9]} 1... c6 {[%clk 0:02:59.7]} 2. Nc3 {[%clk 0:02:59.3]}
2... d5 {[%clk 0:03:00.6]} 3. Nf3 {[%clk 0:02:59.9]} 3... dxe4 {[%clk
0:03:00.6]} 4. Nxe4 {[%clk 0:03:00.8]} 4... Bg4 {[%clk 0:03:01]} 5. h3 {[%clk
0:02:59.6]} 5... Bxf3 {[%clk 0:03:00.8]} 6. Qxf3 {[%clk 0:03:00]} 6... Nd7
{[%clk 0:03:01.7]} 7. d4 {[%clk 0:02:59]} 7... Ndf6 {[%clk 0:03:01.6]} 8. Nxf6+
{[%clk 0:02:48.3]} 8... Nxf6 {[%clk 0:03:02.5]} 9. c3 {[%clk 0:02:48.8]} 9...
Qd5 {[%clk 0:03:02.2]} 10. Be2 {[%clk 0:02:47.6]} 10... e6 {[%clk 0:03:01.9]}
11. O-O {[%clk 0:02:47.6]} 11... Qxf3 {[%clk 0:03:01.7]} 12. Bxf3 {[%clk
0:02:47.7]} 12... Be7 {[%clk 0:02:58.6]} 13. a4 {[%clk 0:02:47.8]} 13... a6
{[%clk 0:02:58.5]} 14. Rd1 {[%clk 0:02:37.2]} 14... O-O-O {[%clk 0:02:57.9]} 15.
b4 {[%clk 0:02:33.3]} 15... Nd5 {[%clk 0:02:55.7]} 16. Bd2 {[%clk 0:02:30.6]}
16... Nb6 {[%clk 0:02:46.2]} 17. Be1 {[%clk 0:02:16.9]} 17... Bd6 {[%clk
0:02:37.2]} 18. Rdb1 {[%clk 0:02:10.6]} 18... Rhe8 {[%clk 0:02:23.4]} 19. b5
{[%clk 0:02:10.8]} 19... axb5 {[%clk 0:02:22.7]} 20. axb5 {[%clk 0:02:11.3]}
20... c5 {[%clk 0:02:23.2]} 21. Rc1 {[%clk 0:01:34.5]} 21... c4 {[%clk 0:02:05]}
22. Ra7 {[%clk 0:01:25.5]} 22... Re7 {[%clk 0:02:03.8]} 23. Bd2 {[%clk
0:01:25.5]} 23... Nd5 {[%clk 0:01:57.4]} 24. Kf1 {[%clk 0:01:11.4]} 24... Rc7
{[%clk 0:01:34.1]} 25. Rb1 {[%clk 0:01:08.4]} 25... Kb8 {[%clk 0:01:10]} 26.
Rba1 {[%clk 0:01:03.8]} 26... Kc8 {[%clk 0:01:08.9]} 27. g3 {[%clk 0:00:56.7]}
27... h6 {[%clk 0:01:05.4]} 28. Rb1 {[%clk 0:00:48.2]} 28... Kb8 {[%clk
0:01:00.4]} 29. Rba1 {[%clk 0:00:45]} 29... Kc8 {[%clk 0:01:00.6]} 30. Rb1
{[%clk 0:00:45]} 30... Kb8 {[%clk 0:00:23.4]} 31. Rba1 {[%clk 0:00:44.9]} 31...
Kc8 {[%clk 0:00:22.7]} 1/2-1/2

[Event "Early-Titled-Tuesday-Blitz-August-29-2023"]
[Site "Chess.com"]
[Date "2023.08.29"]
[Round "2"]
[White "cottage_cheese"]
[Black "Mikedannnn"]
[Result "0-1"]
[WhiteElo "2290"]
[BlackElo "2594"]
[TimeControl "180+1"]
[EndTime "8:16:58 PDT"]
[Termination "Mikedannnn won by resignation"]

1. e4 {[%clk 0:03:00.9]} 1... c5 {[%clk 0:02:56.4]} 2. Nf3 {[%clk 0:03:00.8]}
2... e6 {[%clk 0:02:55.9]} 3. d4 {[%clk 0:03:00]} 3... cxd4 {[%clk 0:02:56.2]}
4. Nxd4 {[%clk 0:03:00.6]} 4... Nc6 {[%clk 0:02:56.6]} 5. Nc3 {[%clk 0:02:59.4]}
5... Qc7 {[%clk 0:02:56.6]} 6. g3 {[%clk 0:02:55.1]} 6... a6 {[%clk 0:02:55.8]}
7. Bg2 {[%clk 0:02:41.9]} 7... Nf6 {[%clk 0:02:55.2]} 8. Be3 {[%clk 0:02:34]}
8... Be7 {[%clk 0:02:54.2]} 9. O-O {[%clk 0:02:33.5]} 9... O-O {[%clk
0:02:53.3]} 10. a4 {[%clk 0:02:20.5]} 10... d6 {[%clk 0:02:51.3]} 11. f4 {[%clk
0:02:04.6]} 11... Bd7 {[%clk 0:02:50.5]} 12. Nb3 {[%clk 0:01:57.2]} 12... b6
{[%clk 0:02:49.3]} 13. Qd2 {[%clk 0:01:51.8]} 13... Rab8 {[%clk 0:02:43.1]} 14.
h3 {[%clk 0:01:49]} 14... Na5 {[%clk 0:02:42.4]} 15. Nxa5 {[%clk 0:01:46.7]}
15... bxa5 {[%clk 0:02:43.3]} 16. Rad1 {[%clk 0:00:54.7]} 16... Rxb2 {[%clk
0:02:23.3]} 17. e5 {[%clk 0:00:52.7]} 17... dxe5 {[%clk 0:02:22.6]} 18. fxe5
{[%clk 0:00:52.6]} 18... Qxe5 {[%clk 0:02:22.6]} 19. Bd4 {[%clk 0:00:50.6]}
19... Bc5 {[%clk 0:02:18.9]} 20. Rf2 {[%clk 0:00:31.1]} 20... Bxd4 {[%clk
0:02:12.7]} 21. Qxd4 {[%clk 0:00:32]} 21... Qxd4 {[%clk 0:02:11.7]} 22. Rxd4
{[%clk 0:00:32.9]} 22... Rc8 {[%clk 0:02:10]} 23. Ne4 {[%clk 0:00:25.7]} 23...
Nxe4 {[%clk 0:01:47.6]} 24. Bxe4 {[%clk 0:00:24.2]} 24... Be8 {[%clk 0:01:43.3]}
25. Rfd2 {[%clk 0:00:22.3]} 25... Kf8 {[%clk 0:01:39.8]} 26. Rd8 {[%clk
0:00:20.2]} 26... Rxd8 {[%clk 0:01:33.7]} 27. Rxd8 {[%clk 0:00:21.1]} 27... Ke7
{[%clk 0:01:33.4]} 28. Ra8 {[%clk 0:00:17.2]} 28... Rb6 {[%clk 0:01:24.2]} 29.
c4 {[%clk 0:00:15]} 29... Bxa4 {[%clk 0:01:21.3]} 30. c5 {[%clk 0:00:14.7]}
30... Rb4 {[%clk 0:01:20.5]} 31. c6 {[%clk 0:00:14.6]} 31... Rxe4 {[%clk
0:01:12]} 32. c7 {[%clk 0:00:14.4]} 32... Bd7 {[%clk 0:01:12.6]} 33. Ra7 {[%clk
0:00:13.2]} 33... Rc4 {[%clk 0:01:10.8]} 0-1

[Event "Early-Titled-Tuesday-Blitz-August-29-2023"]
[Site "Chess.com"]
[Date "2023.08.29"]
[Round "2"]
[White "fireheart92"]
[Black "benny_aizenberg"]
[Result "0-1"]
[WhiteElo "2960"]
[BlackElo "2649"]
[TimeControl "180+1"]
[EndTime "8:17:03 PDT"]
[Termination "benny_aizenberg won by checkmate"]

1. g3 {[%clk 0:02:45.4]} 1... h5 {[%clk 0:02:57.7]} 2. Bg2 {[%clk 0:02:40.8]}
2... h4 {[%clk 0:02:51]} 3. e4 {[%clk 0:02:40.9]} 3... c5 {[%clk 0:02:48.5]} 4.
Nc3 {[%clk 0:02:40.3]} 4... d6 {[%clk 0:02:48.4]} 5. g4 {[%clk 0:02:38.4]} 5...
Nc6 {[%clk 0:02:46.6]} 6. h3 {[%clk 0:02:38.6]} 6... e5 {[%clk 0:02:41.3]} 7. d3
{[%clk 0:02:38.4]} 7... Nge7 {[%clk 0:02:38.1]} 8. f4 {[%clk 0:02:38]} 8... exf4
{[%clk 0:02:27.2]} 9. Bxf4 {[%clk 0:02:38.9]} 9... Ng6 {[%clk 0:02:27.7]} 10.
Be3 {[%clk 0:02:38.9]} 10... Be7 {[%clk 0:02:27.6]} 11. Qd2 {[%clk 0:02:38.8]}
11... Be6 {[%clk 0:02:24.8]} 12. Nge2 {[%clk 0:02:38]} 12... O-O {[%clk
0:02:06.4]} 13. O-O {[%clk 0:02:37]} 13... Rb8 {[%clk 0:01:59.2]} 14. a4 {[%clk
0:02:31]} 14... a6 {[%clk 0:01:55.2]} 15. Nd5 {[%clk 0:02:03.5]} 15... Bxd5
{[%clk 0:01:43.5]} 16. exd5 {[%clk 0:02:04.4]} 16... Nce5 {[%clk 0:01:43.7]} 17.
a5 {[%clk 0:02:04.9]} 17... Bf6 {[%clk 0:00:55.7]} 18. Kh1 {[%clk 0:02:03.8]}
18... Re8 {[%clk 0:00:53.7]} 19. Nc3 {[%clk 0:01:58.2]} 19... Nd7 {[%clk
0:00:47.2]} 20. Ne4 {[%clk 0:01:49.5]} 20... Bxb2 {[%clk 0:00:35.6]} 21. Nxd6
{[%clk 0:01:49.5]} 21... Bxa1 {[%clk 0:00:35.8]} 22. Nxe8 {[%clk 0:01:49.3]}
22... Be5 {[%clk 0:00:34.5]} 23. Nxg7 {[%clk 0:01:45.7]} 23... Bxg7 {[%clk
0:00:33.1]} 24. Qf2 {[%clk 0:01:42.3]} 24... Qe8 {[%clk 0:00:30.1]} 25. Be4
{[%clk 0:01:23.9]} 25... c4 {[%clk 0:00:26.7]} 26. d6 {[%clk 0:01:17.3]} 26...
cxd3 {[%clk 0:00:25.5]} 27. cxd3 {[%clk 0:01:18.2]} 27... Qe6 {[%clk 0:00:24.9]}
28. Ba7 {[%clk 0:01:08]} 28... Rf8 {[%clk 0:00:23.1]} 29. Bxb7 {[%clk 0:00:59]}
29... Qxd6 {[%clk 0:00:23.4]} 30. Be4 {[%clk 0:00:59.1]} 30... Nge5 {[%clk
0:00:21.4]} 31. Bd4 {[%clk 0:00:49.9]} 31... Nxg4 {[%clk 0:00:19]} 32. Qf5
{[%clk 0:00:49.9]} 32... Qh2# {[%clk 0:00:18.7]} 0-1

[Event "Early-Titled-Tuesday-Blitz-August-29-2023"]
[Site "Chess.com"]
[Date "2023.08.29"]
[Round "2"]
[White "VSanduleac"]
[Black "Virgo15"]
[Result "0-1"]
[WhiteElo "2417"]
[BlackElo "2759"]
[TimeControl "180+1"]
[EndTime "8:17:04 PDT"]
[Termination "Virgo15 won by resignation"]

1. e4 {[%clk 0:03:00.9]} 1... e6 {[%clk 0:03:00.5]} 2. Qe2 {[%clk 0:03:00.1]}
2... c5 {[%clk 0:03:00.6]} 3. Nf3 {[%clk 0:03:00]} 3... Nc6 {[%clk 0:03:01.3]}
4. g3 {[%clk 0:03:00.1]} 4... Nf6 {[%clk 0:03:01.9]} 5. Bg2 {[%clk 0:03:00]}
5... d5 {[%clk 0:03:01.6]} 6. d3 {[%clk 0:03:00]} 6... Be7 {[%clk 0:03:01.4]} 7.
O-O {[%clk 0:02:59.3]} 7... b5 {[%clk 0:03:01.1]} 8. Nbd2 {[%clk 0:02:59.1]}
8... O-O {[%clk 0:02:59.7]} 9. Re1 {[%clk 0:02:57.7]} 9... Bb7 {[%clk
0:02:59.7]} 10. e5 {[%clk 0:02:52.3]} 10... Nd7 {[%clk 0:02:59.8]} 11. Nf1
{[%clk 0:02:52.9]} 11... c4 {[%clk 0:02:58.7]} 12. d4 {[%clk 0:02:50.9]} 12...
c3 {[%clk 0:02:51.4]} 13. b3 {[%clk 0:02:49.1]} 13... b4 {[%clk 0:02:50.3]} 14.
a4 {[%clk 0:02:46.7]} 14... bxa3 {[%clk 0:02:49.2]} 15. Bxa3 {[%clk 0:02:46.4]}
15... Bxa3 {[%clk 0:02:49.7]} 16. Rxa3 {[%clk 0:02:46.2]} 16... a5 {[%clk
0:02:50.6]} 17. Qe3 {[%clk 0:02:41.5]} 17... Nb4 {[%clk 0:02:48.3]} 18. Rc1
{[%clk 0:02:39.6]} 18... Rc8 {[%clk 0:02:41.9]} 19. h4 {[%clk 0:02:39.2]} 19...
f5 {[%clk 0:02:08.3]} 20. exf6 {[%clk 0:02:38.1]} 20... Rxf6 {[%clk 0:02:08.8]}
21. N1h2 {[%clk 0:02:37.2]} 21... Nf8 {[%clk 0:02:01.4]} 22. Ng4 {[%clk
0:02:36.2]} 22... Rf7 {[%clk 0:02:00.6]} 23. Nge5 {[%clk 0:02:36]} 23... Rf6
{[%clk 0:02:00.2]} 24. h5 {[%clk 0:02:29.3]} 24... h6 {[%clk 0:01:59]} 25. Bf1
{[%clk 0:02:21.7]} 25... Ba6 {[%clk 0:01:55.4]} 26. Bxa6 {[%clk 0:02:19.3]}
26... Nxa6 {[%clk 0:01:56.3]} 27. Rca1 {[%clk 0:02:16.8]} 27... Nb4 {[%clk
0:01:56.6]} 28. Qe2 {[%clk 0:02:16.8]} 28... Ra8 {[%clk 0:01:47.5]} 29. Ne1
{[%clk 0:02:13.9]} 29... Qb6 {[%clk 0:01:34.9]} 30. N5f3 {[%clk 0:02:06.4]}
30... Rf5 {[%clk 0:01:33.5]} 31. Nd3 {[%clk 0:02:02.7]} 31... Nxc2 {[%clk
0:01:09.7]} 32. Qxc2 {[%clk 0:02:02.4]} 32... Rxf3 {[%clk 0:01:08.9]} 33. Nc5
{[%clk 0:02:02.2]} 33... e5 {[%clk 0:00:51.1]} 34. Kg2 {[%clk 0:02:01.9]} 34...
e4 {[%clk 0:00:51.1]} 35. Nxe4 {[%clk 0:01:47.3]} 35... Rf7 {[%clk 0:00:34.8]}
36. Nc5 {[%clk 0:01:44.7]} 36... Re8 {[%clk 0:00:30.9]} 37. Rxa5 {[%clk
0:01:40.1]} 37... Qf6 {[%clk 0:00:31.1]} 38. Ra7 {[%clk 0:01:32.7]} 38... Qf3+
{[%clk 0:00:29.5]} 39. Kg1 {[%clk 0:01:25.5]} 39... Re2 {[%clk 0:00:21.6]} 40.
Qxe2 {[%clk 0:01:25.3]} 40... Qxe2 {[%clk 0:00:21.1]} 41. Rxf7 {[%clk
0:01:24.2]} 41... Kxf7 {[%clk 0:00:21.2]} 42. Ra7+ {[%clk 0:01:22.8]} 42... Kg8
{[%clk 0:00:21.1]} 0-1

[Event "Early-Titled-Tuesday-Blitz-August-29-2023"]
[Site "Chess.com"]
[Date "2023.08.29"]
[Round "2"]
[White "AnaKuchava"]
[Black "Romkachess"]
[Result "0-1"]
[WhiteElo "2191"]
[BlackElo "2540"]
[TimeControl "180+1"]
[EndTime "8:17:06 PDT"]
[Termination "Romkachess won by resignation"]

1. d4 {[%clk 0:03:00.9]} 1... Nf6 {[%clk 0:02:58.5]} 2. Nf3 {[%clk 0:03:00.5]}
2... e6 {[%clk 0:02:54.6]} 3. c3 {[%clk 0:03:00.2]} 3... d5 {[%clk 0:02:53.8]}
4. Bf4 {[%clk 0:02:59.6]} 4... c5 {[%clk 0:02:54.3]} 5. e3 {[%clk 0:02:59.4]}
5... Nc6 {[%clk 0:02:51]} 6. h3 {[%clk 0:02:58.5]} 6... Bd6 {[%clk 0:02:50.9]}
7. Bxd6 {[%clk 0:02:45.2]} 7... Qxd6 {[%clk 0:02:51.8]} 8. Bd3 {[%clk
0:02:45.7]} 8... e5 {[%clk 0:02:49.6]} 9. dxe5 {[%clk 0:02:43.3]} 9... Nxe5
{[%clk 0:02:50.5]} 10. Nxe5 {[%clk 0:02:41.6]} 10... Qxe5 {[%clk 0:02:51.4]} 11.
Nd2 {[%clk 0:02:41.9]} 11... O-O {[%clk 0:02:49.9]} 12. Nf3 {[%clk 0:02:41.3]}
12... Qe7 {[%clk 0:02:49.8]} 13. O-O {[%clk 0:02:41.2]} 13... Be6 {[%clk
0:02:50]} 14. Qe2 {[%clk 0:02:38]} 14... Rfe8 {[%clk 0:02:41.7]} 15. Rfe1 {[%clk
0:02:28.7]} 15... Rad8 {[%clk 0:02:39.8]} 16. Rad1 {[%clk 0:02:18.4]} 16... h6
{[%clk 0:02:32]} 17. c4 {[%clk 0:02:17.4]} 17... dxc4 {[%clk 0:02:26]} 18. Bxc4
{[%clk 0:02:18.3]} 18... Bxc4 {[%clk 0:02:26.1]} 19. Qxc4 {[%clk 0:02:17.4]}
19... b6 {[%clk 0:02:24.5]} 20. Qa6 {[%clk 0:01:33.9]} 20... Ne4 {[%clk
0:02:18.5]} 21. a4 {[%clk 0:01:28.3]} 21... Rd7 {[%clk 0:02:10.2]} 22. a5 {[%clk
0:01:10.8]} 22... Rb8 {[%clk 0:01:50.9]} 23. Qb5 {[%clk 0:01:02.3]} 23... Nd6
{[%clk 0:01:33.4]} 24. Ne5 {[%clk 0:00:52.7]} 24... Nxb5 {[%clk 0:01:27.5]} 25.
Nxd7 {[%clk 0:00:37.3]} 25... Rd8 {[%clk 0:01:25.1]} 26. Nxb6 {[%clk 0:00:32.6]}
26... axb6 {[%clk 0:01:23.5]} 27. axb6 {[%clk 0:00:33.5]} 27... Rxd1 {[%clk
0:01:22.1]} 28. Rxd1 {[%clk 0:00:32.9]} 28... Nd6 {[%clk 0:01:23]} 29. Rd5
{[%clk 0:00:28.4]} 29... Ne4 {[%clk 0:01:20.7]} 30. f3 {[%clk 0:00:21.2]} 30...
Nf6 {[%clk 0:01:15.3]} 31. Rd3 {[%clk 0:00:19]} 31... Qb7 {[%clk 0:01:13.8]} 32.
Rd6 {[%clk 0:00:15.8]} 32... Kh7 {[%clk 0:01:12.5]} 33. e4 {[%clk 0:00:15.1]}
33... Ne8 {[%clk 0:01:07.4]} 34. Rd8 {[%clk 0:00:13]} 34... Qxb6 {[%clk
0:01:04.4]} 35. Rxe8 {[%clk 0:00:12.5]} 35... Qxb2 {[%clk 0:01:05.1]} 36. Rc8
{[%clk 0:00:11.8]} 36... Qd4+ {[%clk 0:01:02.6]} 37. Kh2 {[%clk 0:00:10.7]}
37... c4 {[%clk 0:01:03.5]} 0-1

[Event "Early-Titled-Tuesday-Blitz-August-29-2023"]
[Site "Chess.com"]
[Date "2023.08.29"]
[Round "2"]
[White "Speshka"]
[Black "BlueWizzard"]
[Result "0-1"]
[WhiteElo "2579"]
[BlackElo "2891"]
[TimeControl "180+1"]
[EndTime "8:17:14 PDT"]
[Termination "BlueWizzard won by checkmate"]

1. e4 {[%clk 0:03:00.9]} 1... e6 {[%clk 0:02:58.9]} 2. d4 {[%clk 0:02:58.8]}
2... Nf6 {[%clk 0:02:59.3]} 3. Nc3 {[%clk 0:02:58.3]} 3... Bb4 {[%clk
0:02:55.3]} 4. e5 {[%clk 0:02:54.5]} 4... Nd5 {[%clk 0:02:54.8]} 5. Bd2 {[%clk
0:02:51.9]} 5... d6 {[%clk 0:02:52.3]} 6. Nf3 {[%clk 0:02:49.8]} 6... dxe5
{[%clk 0:02:44.6]} 7. Nxe5 {[%clk 0:02:48.5]} 7... Nd7 {[%clk 0:02:44.6]} 8. Bd3
{[%clk 0:02:33.3]} 8... Nxe5 {[%clk 0:02:42.2]} 9. dxe5 {[%clk 0:02:33.6]} 9...
Bd7 {[%clk 0:02:24.1]} 10. O-O {[%clk 0:02:29.3]} 10... Bc6 {[%clk 0:02:21.9]}
11. Qg4 {[%clk 0:02:27.1]} 11... Bxc3 {[%clk 0:02:11.1]} 12. bxc3 {[%clk
0:02:25.6]} 12... Qe7 {[%clk 0:02:08.9]} 13. Qxg7 {[%clk 0:02:19.5]} 13... O-O-O
{[%clk 0:01:50.4]} 14. g3 {[%clk 0:02:08.1]} 14... h6 {[%clk 0:01:37.3]} 15. Qg4
{[%clk 0:02:03.6]} 15... Rdg8 {[%clk 0:01:31.1]} 16. Qe2 {[%clk 0:02:03.2]}
16... h5 {[%clk 0:01:30]} 17. c4 {[%clk 0:02:02.4]} 17... Nb6 {[%clk 0:01:25.5]}
18. Be4 {[%clk 0:02:01.4]} 18... Qc5 {[%clk 0:01:22.5]} 19. Be3 {[%clk
0:01:43.3]} 19... Qxe5 {[%clk 0:01:16.4]} 20. Bxc6 {[%clk 0:01:40.4]} 20... bxc6
{[%clk 0:01:17.3]} 21. Rab1 {[%clk 0:01:24.9]} 21... h4 {[%clk 0:01:15.1]} 22.
Qf3 {[%clk 0:01:21.3]} 22... hxg3 {[%clk 0:01:13.3]} 23. fxg3 {[%clk 0:01:22.2]}
23... Nxc4 {[%clk 0:01:06]} 24. Bf2 {[%clk 0:01:10.6]} 24... Qd5 {[%clk
0:00:58.9]} 25. Qxf7 {[%clk 0:01:08.8]} 25... Ne5 {[%clk 0:00:56.2]} 26. Rb8+
{[%clk 0:00:25.9]} 26... Kxb8 {[%clk 0:00:54.5]} 27. Bxa7+ {[%clk 0:00:24.3]}
27... Kxa7 {[%clk 0:00:49.5]} 28. Qxc7+ {[%clk 0:00:23.9]} 28... Ka6 {[%clk
0:00:42.9]} 29. Rb1 {[%clk 0:00:20.6]} 29... Rxg3+ {[%clk 0:00:35.5]} 30. hxg3
{[%clk 0:00:20.4]} 30... Rh1+ {[%clk 0:00:34.9]} 31. Kf2 {[%clk 0:00:20.7]}
31... Qf3# {[%clk 0:00:35.8]} 0-1

[Event "Early-Titled-Tuesday-Blitz-August-29-2023"]
[Site "Chess.com"]
[Date "2023.08.29"]
[Round "2"]
[White "GAusal"]
[Black "ural58"]
[Result "0-1"]
[WhiteElo "2320"]
[BlackElo "2517"]
[TimeControl "180+1"]
[EndTime "8:17:14 PDT"]
[Termination "ural58 won on time"]

1. d4 {[%clk 0:03:00.9]} 1... d5 {[%clk 0:02:58.8]} 2. Nf3 {[%clk 0:03:01.4]}
2... Nc6 {[%clk 0:02:58]} 3. Bf4 {[%clk 0:02:59.3]} 3... Bg4 {[%clk 0:02:57.4]}
4. e3 {[%clk 0:02:55.7]} 4... e6 {[%clk 0:02:57.3]} 5. h3 {[%clk 0:02:55.9]}
5... Bf5 {[%clk 0:02:50.1]} 6. c4 {[%clk 0:02:55.4]} 6... Bd6 {[%clk 0:02:49.5]}
7. Bxd6 {[%clk 0:02:48.7]} 7... cxd6 {[%clk 0:02:46.6]} 8. cxd5 {[%clk 0:02:44]}
8... exd5 {[%clk 0:02:46.7]} 9. Bd3 {[%clk 0:02:41.6]} 9... Bxd3 {[%clk
0:02:42.4]} 10. Qxd3 {[%clk 0:02:40.8]} 10... Nge7 {[%clk 0:02:42.3]} 11. Nc3
{[%clk 0:02:35.6]} 11... O-O {[%clk 0:02:42]} 12. O-O {[%clk 0:02:35.2]} 12...
a6 {[%clk 0:02:41.3]} 13. a3 {[%clk 0:02:22.3]} 13... Rc8 {[%clk 0:02:40.9]} 14.
b4 {[%clk 0:02:18.6]} 14... Qd7 {[%clk 0:02:32.8]} 15. b5 {[%clk 0:02:15.4]}
15... Na5 {[%clk 0:02:31.5]} 16. Nd2 {[%clk 0:02:02.3]} 16... Nc4 {[%clk
0:02:28.6]} 17. bxa6 {[%clk 0:01:57.5]} 17... Nxd2 {[%clk 0:02:07.1]} 18. Qxd2
{[%clk 0:01:54]} 18... bxa6 {[%clk 0:02:06.5]} 19. Ne2 {[%clk 0:01:50.8]} 19...
Rc4 {[%clk 0:02:05.7]} 20. Qa5 {[%clk 0:01:41.6]} 20... Ra4 {[%clk 0:02:04.5]}
21. Qb6 {[%clk 0:01:34.2]} 21... Qc6 {[%clk 0:02:04.1]} 22. Qxc6 {[%clk
0:01:29.2]} 22... Nxc6 {[%clk 0:02:03.6]} 23. Rfb1 {[%clk 0:01:25.4]} 23... Na5
{[%clk 0:02:02.7]} 24. Rb6 {[%clk 0:01:22.2]} 24... Nc4 {[%clk 0:02:02.4]} 25.
Rc6 {[%clk 0:01:14.6]} 25... h6 {[%clk 0:01:47.6]} 26. Nf4 {[%clk 0:01:12.7]}
26... Rb8 {[%clk 0:01:42.7]} 27. Nxd5 {[%clk 0:00:59.5]} 27... Rb2 {[%clk
0:01:42.2]} 28. g3 {[%clk 0:00:48]} 28... a5 {[%clk 0:01:41.5]} 29. Nc3 {[%clk
0:00:41.1]} 29... Rxa3 {[%clk 0:01:41.5]} 30. Rxa3 {[%clk 0:00:19.3]} 30... Nxa3
{[%clk 0:01:41.3]} 31. Rxd6 {[%clk 0:00:13.8]} 31... Nc4 {[%clk 0:01:39.4]} 32.
Ra6 {[%clk 0:00:11.6]} 32... Rb6 {[%clk 0:01:39]} 33. Rxb6 {[%clk 0:00:06.3]}
33... Nxb6 {[%clk 0:01:38.4]} 34. Nb5 {[%clk 0:00:06.4]} 34... a4 {[%clk
0:01:38.2]} 35. e4 {[%clk 0:00:06.8]} 35... Nc4 {[%clk 0:01:38.1]} 36. Kf1
{[%clk 0:00:05.4]} 36... Nd2+ {[%clk 0:01:37.4]} 37. Ke2 {[%clk 0:00:04.3]}
37... Nxe4 {[%clk 0:01:38.3]} 38. Kd3 {[%clk 0:00:04.3]} 38... f5 {[%clk
0:01:38.6]} 39. f3 {[%clk 0:00:03.1]} 39... Nxg3 {[%clk 0:01:38.6]} 40. d5
{[%clk 0:00:04]} 40... Kf7 {[%clk 0:01:38.6]} 41. Kc4 {[%clk 0:00:03.8]} 41...
Ne2 {[%clk 0:01:36]} 42. Kb4 {[%clk 0:00:03.9]} 42... Nf4 {[%clk 0:01:35.4]} 43.
Kxa4 {[%clk 0:00:04.2]} 43... Nxd5 {[%clk 0:01:35.2]} 44. Kb3 {[%clk 0:00:03.1]}
44... Nf4 {[%clk 0:01:35.8]} 45. h4 {[%clk 0:00:02.6]} 45... Ng2 {[%clk
0:01:33.4]} 46. h5 {[%clk 0:00:02.2]} 46... Nf4 {[%clk 0:01:33.4]} 47. Nd4
{[%clk 0:00:02.1]} 47... Kf6 {[%clk 0:01:33.6]} 48. Kc4 {[%clk 0:00:01.6]} 48...
Nxh5 {[%clk 0:01:33.9]} 0-1